bitfinex/quotes_BTCUSD_20230101
["timestamp","ask_amount","ask_price","bid_price","bid_amount"]
[1672562970788,0.68248848,16528.0,16527.0,0.01155457]
[1672562971070,1.22604809,16528.0,16527.0,0.01155457]
[1672562971319,1.22604116,16528.0,16527.0,0.01155457]
[1672562972330,1.22604116,16528.0,16527.0,0.12251556]
[1672562973091,1.22593516,16528.0,16527.0,0.12251556]
[1672562975080,1.2260505,16528.0,16527.0,0.12251556]
[1672562975324,1.22593516,16528.0,16527.0,0.12251556]
[1672562978580,1.21637593,16528.0,16527.0,0.12251556]
[1672562980274,0.67282325,16528.0,16527.0,0.12251556]
[1672562980772,1.21647686,16528.0,16527.0,0.12251556]
[1672562981534,1.21647686,16528.0,16527.0,0.65494571]
[1672562983713,0.65676919,16528.0,16527.0,0.65494571]
[1672562984214,0.65676919,16528.0,16527.0,0.95494571]
[1672562984454,0.65676919,16528.0,16527.0,0.65494571]
[1672562987690,0.65676919,16528.0,16527.0,0.95494571]
[1672562987948,0.65676919,16528.0,16527.0,0.65494571]
[1672562988212,0.65676919,16528.0,16527.0,1.26001571]
[1672562988449,0.65676919,16528.0,16527.0,0.65494571]
[1672562990287,0.65688453,16528.0,16527.0,1.26001571]
[1672562990522,0.65676919,16528.0,16527.0,1.26001571]
[1672562990789,0.65676919,16528.0,16527.0,0.65494571]
[1672562991849,0.65676919,16528.0,16527.0,1.56001571]
[1672562993126,0.65676919,16528.0,16527.0,2.16508571]
[1672562993620,0.65688453,16528.0,16527.0,1.56001571]
[1672562993906,0.65688453,16528.0,16527.0,1.26001571]
[1672562993907,0.65676919,16528.0,16527.0,1.26001571]
[1672562995196,0.65688453,16528.0,16527.0,1.26001571]
[1672562995434,0.65676919,16528.0,16527.0,0.65494571]
[1672562996193,0.65688453,16528.0,16527.0,0.65494571]
[1672562996495,0.65676919,16528.0,16527.0,0.65494571]
[1672562998244,0.65676919,16528.0,16527.0,1.26001571]
[1672562998488,0.65676919,16528.0,16527.0,1.86508571]
[1672562999743,0.65676919,16528.0,16527.0,2.16508571]
[1672563000491,0.65676919,16528.0,16527.0,1.26001571]
[1672563000756,0.65676919,16528.0,16527.0,1.5599539]
[1672563001790,0.65688453,16528.0,16527.0,0.6548839]
[1672563002545,0.65676919,16528.0,16527.0,1.2599539]
[1672563007084,0.65688453,16528.0,16527.0,1.2599539]
[1672563007339,0.65688453,16528.0,16527.0,0.6548839]
[1672563007588,0.65676919,16528.0,16527.0,0.6548839]
[1672563007889,0.65676919,16528.0,16527.0,1.2599539]
[1672563008601,0.65676919,16528.0,16527.0,1.5599539]
[1672563008843,0.65676919,16528.0,16527.0,1.2599539]
[1672563011581,0.65676919,16528.0,16527.0,1.5599539]
[1672563011836,0.65676919,16528.0,16527.0,2.1650239]
[1672563012319,0.65676919,16528.0,16527.0,1.8650239]
[1672563012567,0.65676919,16528.0,16527.0,1.5599539]
[1672563013822,0.65676919,16528.0,16527.0,2.1650239]
[1672563016649,0.65688453,16528.0,16527.0,1.5599539]
[1672563016888,0.65676919,16528.0,16527.0,2.18329485]
[1672563017394,0.65676919,16528.0,16527.0,1.57822485]
[1672563018395,0.11311558,16528.0,16527.0,2.18329485]
[1672563018643,0.65676919,16528.0,16527.0,2.18329485]
[1672563018890,0.65688453,16528.0,16527.0,2.18329485]
[1672563019141,0.65676919,16528.0,16527.0,1.57822485]
[1672563019931,0.65676919,16528.0,16527.0,2.18329485]
[1672563021498,0.65676919,16528.0,16527.0,2.18319843]
[1672563021760,0.65676919,16528.0,16527.0,1.57812843]
[1672563022006,0.65676919,16528.0,16527.0,2.18319843]
[1672563022234,0.65688453,16528.0,16527.0,2.18319843]
[1672563022725,0.65676919,16528.0,16527.0,2.18319843]
[1672563022984,0.65676919,16528.0,16527.0,1.57812843]
[1672563031607,0.65676919,16528.0,16527.0,2.18319843]
[1672563032097,0.65676919,16528.0,16527.0,1.57812843]
[1672563032344,0.65676919,16528.0,16527.0,2.18319843]
[1672563032598,0.65676919,16528.0,16527.0,1.57812843]
[1672563033899,0.65676919,16528.0,16527.0,2.18319843]
[1672563034413,0.65676919,16528.0,16527.0,1.57812843]
[1672563035546,0.65676919,16528.0,16527.0,2.18319843]
[1672563036084,0.65688453,16528.0,16527.0,1.04569828]
[1672563036345,0.65688453,16528.0,16527.0,0.14062828]
[1672563037587,0.11323092,16528.0,16527.0,0.14062828]
[1672563038646,0.11311558,16528.0,16527.0,0.14062828]
[1672563039380,0.65689986,16528.0,16527.0,0.14062828]
[1672563040099,0.6570152,16528.0,16527.0,0.14062828]
[1672563041588,0.65689986,16528.0,16527.0,0.14062828]
[1672563041837,0.6570152,16528.0,16527.0,0.14062828]
[1672563042348,0.6568359,16528.0,16527.0,0.14062828]
[1672563043370,0.65678606,16528.0,16527.0,0.14062828]
[1672563044424,0.65678606,16528.0,16527.0,0.1405099]
[1672563044674,0.6569014,16528.0,16527.0,0.1405099]
[1672563044937,0.6569014,16528.0,16527.0,0.12223895]
[1672563045953,0.11323092,16528.0,16527.0,0.12223895]
[1672563047725,0.73429892,16528.0,16527.0,0.12223895]
[1672563048222,1.13683296,16528.0,16527.0,0.01127796]
[1672563048461,1.6270833,16528.0,16527.0,0.01127796]
[1672563051239,2.23890524,16528.0,16527.0,0.01127796]
[1672563051486,1.22454926,16528.0,16527.0,0.01127796]
[1672563051753,1.0060153,16528.0,16527.0,0.01127796]
[1672563052004,1.0060153,16528.0,16527.0,0.120414]
[1672563052490,1.6270833,16528.0,16527.0,0.120414]
[1672563053729,1.6270833,16528.0,16527.0,0.01127796]
[1672563053973,1.61783724,16528.0,16527.0,0.01127796]
[1672563054216,0.60348126,16528.0,16527.0,0.01127796]
[1672563054458,1.0060153,16528.0,16527.0,0.01127796]
[1672563054949,0.60348126,16528.0,16527.0,0.01127796]
[1672563055460,0.60336592,16528.0,16527.0,0.120414]
[1672563056221,1.00589996,16528.0,16527.0,0.120414]
[1672563056472,0.60336592,16528.0,16527.0,0.120414]
[1672563056965,1.00589996,16528.0,16527.0,0.120414]
[1672563057206,1.22443392,16528.0,16527.0,0.120414]
[1672563057452,1.62696796,16528.0,16527.0,0.01127796]
[1672563058380,1.00589996,16528.0,16527.0,0.01127796]
[1672563059078,0.60348126,16528.0,16527.0,0.01127796]
[1672563061327,0.60336592,16528.0,16527.0,0.01127796]
[1672563061597,0.60336592,16528.0,16527.0,0.120414]
[1672563062138,1.22443392,16528.0,16527.0,0.120414]
[1672563062398,1.22454926,16528.0,16527.0,0.120414]
[1672563062639,1.6270833,16528.0,16527.0,0.01127796]
[1672563063661,2.23890524,16528.0,16527.0,0.01127796]
[1672563063895,1.8363712,16528.0,16527.0,0.01127796]
[1672563066395,1.22454926,16528.0,16527.0,0.01127796]
[1672563066631,1.6270833,16528.0,16527.0,0.01127796]
[1672563066887,1.6270833,16528.0,16527.0,0.0599064]
[1672563067203,1.22443392,16528.0,16527.0,0.0599064]
[1672563067900,0.60336592,16528.0,16527.0,0.0599064]
[1672563068722,0.60336592,16528.0,16527.0,0.05983124]
[1672563070741,1.22454926,16528.0,16527.0,0.05983124]
[1672563070986,2.23890524,16528.0,16527.0,0.05983124]
[1672563072718,1.8363712,16528.0,16527.0,0.05983124]
[1672563074430,1.83625586,16528.0,16527.0,0.05983124]
[1672563077993,1.8363712,16528.0,16527.0,0.05983124]
[1672563078667,1.83625586,16528.0,16527.0,0.05983124]
[1672563079121,1.8363712,16528.0,16527.0,0.05983124]
[1672563086398,1.83625586,16528.0,16527.0,0.05983124]
[1672563090025,1.83625586,16528.0,16527.0,0.05974759]
[1672563090269,1.8363712,16528.0,16527.0,0.05974759]
[1672563090762,1.83625586,16528.0,16527.0,0.05974759]
[1672563091255,1.8363712,16528.0,16527.0,0.05974759]
[1672563092009,1.83625586,16528.0,16527.0,0.05974759]
[1672563092265,1.8363712,16528.0,16527.0,0.05974759]
[1672563092521,1.83625586,16528.0,16527.0,0.05974759]
[1672563093266,1.8363712,16528.0,16527.0,0.05974759]
[1672563095796,1.83625586,16528.0,16527.0,0.05974759]
[1672563100591,1.8363712,16528.0,16527.0,0.05974759]
[1672563100804,1.83625586,16528.0,16527.0,0.05974759]
[1672563101569,1.8363712,16528.0,16527.0,0.05974759]
[1672563101832,1.83625586,16528.0,16527.0,0.05974759]
[1672563102813,1.8363712,16528.0,16527.0,0.05974759]
[1672563103558,1.83625586,16528.0,16527.0,0.05974759]
[1672563105826,1.22443392,16528.0,16527.0,0.05974759]
[1672563106071,1.83673039,16528.0,16527.0,0.05974759]
[1672563107088,1.83684573,16528.0,16527.0,0.05974759]
[1672563108160,1.83673039,16528.0,16527.0,0.05974759]
[1672563108469,1.83684573,16528.0,16527.0,0.05974759]
[1672563108745,1.83673039,16528.0,16527.0,0.05974759]
[1672563109295,1.22443392,16528.0,16527.0,0.05974759]
[1672563109514,2.4492688,16528.0,16527.0,0.05974759]
[1672563109752,1.83679322,16528.0,16527.0,0.05974759]
[1672563110469,1.83690856,16528.0,16527.0,0.05974759]
[1672563110956,1.83690856,16528.0,16527.0,0.05963235]
[1672563113522,1.83679322,16528.0,16527.0,0.05963235]
[1672563115543,2.44937195,16528.0,16527.0,0.05963235]
[1672563116534,1.83679322,16528.0,16527.0,0.05963235]
[1672563117194,1.83690856,16528.0,16527.0,0.05963235]
[1672563118750,1.83679322,16528.0,16527.0,0.05963235]
[1672563119249,2.44934464,16528.0,16527.0,0.05963235]
[1672563120255,2.44945998,16528.0,16527.0,0.05963235]
[1672563120504,2.44934464,16528.0,16527.0,0.05963235]
[1672563121510,2.44945998,16528.0,16527.0,0.05963235]
[1672563122021,2.44934464,16528.0,16527.0,0.05963235]
[1672563122270,2.44934464,16528.0,16527.0,0.06073556]
[1672563122517,2.44934464,16528.0,16527.0,0.05963235]
[1672563122767,2.44945998,16528.0,16527.0,0.05963235]
[1672563123513,2.44934464,16528.0,16527.0,0.05963235]
[1672563123772,2.44945998,16528.0,16527.0,0.05963235]
[1672563124843,2.44934481,16528.0,16527.0,0.05963235]
[1672563125099,2.44934481,16528.0,16527.0,0.15963235]
[1672563125367,2.44922947,16528.0,16527.0,0.15963235]
[1672563127958,2.44916385,16528.0,16527.0,0.15963235]
[1672563128148,1.83667805,16528.0,16527.0,0.15963235]
[1672563128388,1.21561005,16528.0,16527.0,0.15963235]
[1672563128632,1.82809519,16528.0,16527.0,0.15963235]
[1672563128885,1.83667805,16528.0,16527.0,0.15963235]
[1672563129098,2.44916381,16528.0,16527.0,0.15963235]
[1672563129842,2.44927915,16528.0,16527.0,0.15963235]
[1672563130607,2.44916381,16528.0,16527.0,0.15963235]
[1672563130855,2.44927915,16528.0,16527.0,0.15963235]
[1672563131113,2.44916381,16528.0,16527.0,0.15963235]
[1672563133424,3.061681,16528.0,16527.0,0.15963235]
[1672563133931,3.06179634,16528.0,16527.0,0.15963235]
[1672563134178,3.061681,16528.0,16527.0,0.15963235]
[1672563135181,3.06179634,16528.0,16527.0,0.15963235]
[1672563135429,3.061681,16528.0,16527.0,0.15963235]
[1672563135917,2.44916381,16528.0,16527.0,0.11100391]
[1672563136451,2.44927915,16528.0,16527.0,0.11100391]
[1672563137234,2.85181319,16528.0,16527.0,0.11100391]
[1672563139007,3.57162885,16528.0,16527.0,0.11100391]
[1672563139504,4.18241405,16528.0,16527.0,0.11100391]
[1672563139772,3.57162885,16528.0,16527.0,0.11100391]
[1672563140024,4.02893318,16528.0,16527.0,0.11100391]
[1672563140515,3.57162885,16528.0,16527.0,0.11100391]
[1672563143230,4.14749126,16528.0,16527.0,0.11100391]
[1672563144010,3.53513196,16528.0,16527.0,0.11100391]
[1672563145488,3.53513196,16528.0,16527.0,0.12323179]
[1672563145759,3.53513196,16528.0,16527.0,0.11100391]
[1672563147750,3.53513196,16528.0,16527.0,0.11089727]
[1672563166465,2.52744958,16528.0,16527.0,0.11089727]
[1672563166710,1.90638158,16528.0,16527.0,0.11089727]
[1672563167445,2.30891562,16528.0,16527.0,0.11089727]
[1672563167688,1.90638158,16528.0,16527.0,0.11089727]
[1672563168682,2.9206909,16528.0,16527.0,0.11089727]
[1672563168925,2.92998362,16528.0,16527.0,0.11089727]
[1672563169425,2.30891562,16528.0,16527.0,0.11083592]
[1672563170021,2.30903096,16528.0,16527.0,0.11083592]
[1672563170278,2.30903096,16528.0,16527.0,0.17410836]
[1672563170523,2.93009896,16528.0,16527.0,0.11083592]
[1672563172337,2.89887936,16528.0,16527.0,0.10683592]
[1672563172575,3.00387936,16528.0,16527.0,0.11083592]
[1672563176309,2.89887936,16528.0,16527.0,0.10683592]
[1672563176579,3.00387936,16528.0,16527.0,0.11083592]
[1672563179864,3.60891236,16528.0,16527.0,0.11083592]
[1672563180611,3.00387936,16528.0,16527.0,0.11083592]
[1672563184645,3.00376402,16528.0,16527.0,0.11083592]
[1672563185645,3.60879702,16528.0,16527.0,0.11083592]
[1672563188164,3.60891236,16528.0,16527.0,0.11083592]
[1672563189161,3.92615023,16528.0,16527.0,0.11083592]
[1672563190432,3.59744854,16528.0,16527.0,0.11083592]
[1672563190670,4.49054882,16528.0,16527.0,0.11083592]
[1672563190926,4.49054882,16528.0,16527.0,0.11075309]
[1672563191465,3.59744854,16528.0,16527.0,0.11075309]
[1672563193629,3.03304995,16528.0,16527.0,0.11075309]
[1672563194645,3.92615023,16528.0,16527.0,0.11075309]
[1672563194887,4.52476828,16528.0,16527.0,0.11075309]
[1672563195127,3.631668,16528.0,16527.0,0.11075309]
[1672563214945,3.631668,16528.0,16527.0,0.11065598]
[1672563221619,3.63155266,16528.0,16527.0,0.11065598]
[1672563222847,3.631668,16528.0,16527.0,0.11065598]
[1672563224392,4.52476828,16528.0,16527.0,0.11065598]
[1672563225475,3.631668,16528.0,16527.0,0.11065598]
[1672563226159,4.52476828,16528.0,16527.0,0.11065598]
[1672563226404,3.631668,16528.0,16527.0,0.11065598]
[1672563226895,4.52476828,16528.0,16527.0,0.11065598]
[1672563227158,3.631668,16528.0,16527.0,0.11065598]
[1672563231335,4.53326828,16528.0,16527.0,0.11065598]
[1672563231594,3.640168,16528.0,16527.0,0.11065598]
[1672563235282,4.15399753,16528.0,16527.0,0.11065598]
[1672563235535,4.07221672,16528.0,16527.0,0.11065598]
[1672563236022,4.07221672,16528.0,16527.0,0.11058375]
[1672563236274,4.14050906,16528.0,16527.0,0.11058375]
[1672563236754,3.62667953,16528.0,16527.0,0.11058375]
[1672563237981,3.01419377,16528.0,16527.0,0.11058375]
[1672563238226,3.90729405,16528.0,16527.0,0.11058375]
[1672563243978,3.90722358,16528.0,16527.0,0.11058375]
[1672563253555,3.0141233,16528.0,16527.0,0.11058375]
[1672563255628,3.01400796,16528.0,16527.0,0.11058375]
[1672563255932,2.39293996,16528.0,16527.0,0.11058375]
[1672563258963,3.01400796,16528.0,16527.0,0.11058375]
[1672563259213,3.0141233,16528.0,16527.0,0.11058375]
[1672563261069,3.01400796,16528.0,16527.0,0.11058375]
[1672563261295,1.78790696,16528.0,16527.0,0.11058375]
[1672563261510,2.4090903,16528.0,16527.0,0.11058375]
[1672563261810,1.7880223,16528.0,16527.0,0.11058375]
[1672563262348,1.7880223,16528.0,16527.0,0.74900681]
[1672563262349,0.17329234,16528.0,16527.0,0.74900681]
[1672563262603,0.78558881,16528.0,16527.0,0.74900681]
[1672563263113,0.17329234,16528.0,16527.0,0.74900681]
[1672563263911,0.68058881,16528.0,16527.0,0.74500681]
[1672563264161,0.76858881,16528.0,16527.0,0.75100681]
[1672563264422,0.68058881,16528.0,16527.0,0.74500681]
[1672563264669,0.69058881,16528.0,16527.0,0.79500681]
[1672563264921,0.68058881,16528.0,16527.0,0.74500681]
[1672563265228,0.68358881,16528.0,16527.0,0.75000681]
[1672563265461,0.68358881,16528.0,16527.0,1.05000681]
[1672563265462,0.07129234,16528.0,16527.0,1.05000681]
[1672563265727,0.07129234,16528.0,16527.0,0.76827776]
[1672563265728,0.61539585,16528.0,16527.0,0.76827776]
[1672563266248,0.61239585,16528.0,16527.0,1.06327776]
[1672563266513,0.70739585,16528.0,16527.0,1.06827776]
[1672563266779,0.16329234,16528.0,16527.0,1.06827776]
[1672563267275,0.16329234,16528.0,16527.0,0.76827776]
[1672563267583,0.70739585,16528.0,16527.0,0.75000681]
[1672563267791,0.70739585,16528.0,16527.0,0.74993853]
[1672563272153,0.16329234,16528.0,16527.0,0.74993853]
[1672563279962,0.61599229,16528.0,16527.0,1.04993853]
[1672563280225,0.61599229,16528.0,16527.0,0.74993853]
[1672563280472,0.61599229,16528.0,16527.0,1.04993853]
[1672563280720,0.61599229,16528.0,16527.0,0.74993853]
[1672563280976,0.61599229,16528.0,16527.0,1.04993853]
[1672563281474,0.61610763,16528.0,16527.0,0.74993853]
[1672563281738,0.61599229,16528.0,16527.0,0.74993853]
[1672563285207,0.16329234,16528.0,16527.0,0.74993853]
[1672563286758,0.16340768,16528.0,16527.0,0.74993853]
[1672563287014,0.16329234,16528.0,16527.0,0.74993853]
[1672563288002,0.16340768,16528.0,16527.0,0.74993853]
[1672563288264,0.16329234,16528.0,16527.0,0.74982898]
[1672563290553,0.70739585,16528.0,16527.0,0.74982898]
[1672563291332,0.70751119,16528.0,16527.0,0.74982898]
[1672563291590,0.70739585,16528.0,16527.0,0.74982898]
[1672563292058,0.16329234,16528.0,16527.0,0.74982898]
[1672563292582,0.70739585,16528.0,16527.0,0.74982898]
[1672563293852,0.70751119,16528.0,16527.0,0.74982898]
[1672563294100,0.70739585,16528.0,16527.0,0.74982898]
[1672563300725,0.70739585,16528.0,16527.0,1.04982898]
[1672563300969,0.70739585,16528.0,16527.0,0.74982898]
[1672563302725,0.16329234,16528.0,16527.0,0.74982898]
[1672563304003,0.16340768,16528.0,16527.0,0.74982898]
[1672563304509,0.16329234,16528.0,16527.0,0.74982898]
[1672563306154,0.16340768,16528.0,16527.0,0.74982898]
[1672563306404,0.16329234,16528.0,16527.0,0.74982898]
[1672563307651,0.16340768,16528.0,16527.0,0.74982898]
[1672563307907,0.16329234,16528.0,16527.0,0.74982898]
[1672563309833,0.16340768,16528.0,16527.0,0.74982898]
[1672563310063,0.16329234,16528.0,16527.0,0.74982898]
[1672563310880,0.16340768,16528.0,16527.0,0.74982898]
[1672563311136,0.16329234,16528.0,16527.0,0.74973682]
[1672563311899,0.16340768,16528.0,16527.0,0.74973682]
[1672563312190,0.16329234,16528.0,16527.0,0.74973682]
[1672563313968,0.16340768,16528.0,16527.0,0.74973682]
[1672563314491,0.16329234,16528.0,16527.0,0.74973682]
[1672563316481,0.70786705,16528.0,16527.0,0.74973682]
[1672563316988,0.70785231,16528.0,16527.0,0.74973682]
[1672563317942,0.16329234,16528.0,16527.0,0.74973682]
[1672563319269,0.70785459,16528.0,16527.0,0.74973682]
[1672563319509,0.16329234,16528.0,16527.0,0.74973682]
[1672563320038,0.70784988,16528.0,16527.0,0.74973682]
[1672563320297,0.16329234,16528.0,16527.0,0.74973682]
[1672563320806,0.16319289,16528.0,16527.0,0.74973682]
[1672563322332,0.16330823,16528.0,16527.0,0.74973682]
[1672563322581,0.16319289,16528.0,16527.0,0.74973682]
[1672563326113,0.16330823,16528.0,16527.0,0.74973682]
[1672563326326,0.16319289,16528.0,16527.0,0.74973682]
[1672563331672,0.16330823,16528.0,16527.0,0.74973682]
[1672563331911,0.16319289,16528.0,16527.0,0.74973682]
[1672563332925,0.16319289,16528.0,16527.0,0.74955582]
[1672563337917,0.16330823,16528.0,16527.0,0.74955582]
[1672563338439,0.70787702,16528.0,16527.0,0.74955582]
[1672563338684,0.70776168,16528.0,16527.0,0.74955582]
[1672563341695,0.70776168,16528.0,16527.0,1.04955582]
[1672563341910,0.70776168,16528.0,16527.0,0.74955582]
[1672563343394,0.70776168,16528.0,16527.0,1.04955582]
[1672563343635,0.70776168,16528.0,16527.0,0.74955582]
[1672563344646,0.70776168,16528.0,16527.0,1.04955582]
[1672563345423,0.70776168,16528.0,16527.0,1.65462582]
[1672563350154,0.16319289,16528.0,16527.0,2.25969582]
[1672563350384,0.61682139,16528.0,16527.0,2.66222986]
[1672563352198,0.97973836,16528.0,16527.0,2.66222986]
[1672563354451,0.97973836,16528.0,16527.0,2.68050081]
[1672563355676,0.97973836,16528.0,16527.0,2.66215713]
[1672563356419,1.25178527,16528.0,16527.0,2.68042808]
[1672563356658,0.79815677,16528.0,16527.0,2.68042808]
[1672563358245,0.97952642,16528.0,16527.0,2.68042808]
[1672563358496,0.61657888,16528.0,16527.0,2.68042808]
[1672563360995,0.60157888,16528.0,16527.0,2.68042808]
[1672563361235,0.96449585,16528.0,16527.0,2.68042808]
[1672563361478,0.78315677,16528.0,16527.0,2.68042808]
[1672563365785,1.23678527,16528.0,16527.0,2.68042808]
[1672563366057,0.96473836,16528.0,16527.0,2.27789404]
[1672563366273,0.96473836,16528.0,16527.0,2.68029057]
[1672563367569,0.96473836,16528.0,16527.0,2.68022179]
[1672563367820,0.96473836,16528.0,16527.0,2.68018741]
[1672563368076,0.96473836,16528.0,16527.0,2.27789404]
[1672563370014,0.96473836,16528.0,16527.0,1.67282404]
[1672563371645,0.60182139,16528.0,16527.0,1.67282404]
[1672563374506,0.60182139,16528.0,16527.0,1.65455309]
[1672563374724,0.60182139,16528.0,16527.0,1.67282404]
[1672563376357,0.14819289,16528.0,16527.0,1.67282404]
[1672563376600,0.14819289,16528.0,16527.0,1.37282404]
[1672563377566,0.14819289,16528.0,16527.0,1.67282404]
[1672563378256,0.14819289,16528.0,16527.0,1.37282404]
[1672563378718,0.14819289,16528.0,16527.0,1.67282404]
[1672563379169,0.14819289,16528.0,16527.0,1.37282404]
[1672563379413,0.14819289,16528.0,16527.0,1.67282404]
[1672563379638,0.14819289,16528.0,16527.0,1.37282404]
[1672563380346,0.14819289,16528.0,16527.0,1.67282404]
[1672563380567,0.14819289,16528.0,16527.0,1.37282404]
[1672563383209,0.14819289,16528.0,16527.0,1.35448201]
[1672563386028,0.14819289,16528.0,16527.0,1.65448201]
[1672563386537,0.14819289,16528.0,16527.0,1.35448201]
[1672563388248,0.14819289,16528.0,16527.0,1.65448201]
[1672563388491,0.14819289,16528.0,16527.0,1.35448201]
[1672563389248,0.14819289,16528.0,16527.0,1.65448201]
[1672563389950,0.14819289,16528.0,16527.0,1.35448201]
[1672563390190,0.14819289,16528.0,16527.0,1.65448201]
[1672563390987,0.14819289,16528.0,16527.0,1.35448201]
[1672563391960,0.14819289,16528.0,16527.0,1.65448201]
[1672563392228,0.14819289,16528.0,16527.0,1.35448201]
[1672563392478,0.14819289,16528.0,16527.0,1.65448201]
[1672563392729,0.14819289,16528.0,16527.0,1.35448201]
[1672563393967,0.14830823,16528.0,16527.0,1.35448201]
[1672563394220,0.14819289,16528.0,16527.0,1.35448201]
[1672563395210,0.69276168,16528.0,16527.0,1.35448201]
[1672563395708,0.14819289,16528.0,16527.0,1.35448201]
[1672563397470,0.69276168,16528.0,16527.0,1.35448201]
[1672563405319,0.69276168,16528.0,16527.0,0.78244964]
[1672563405560,1.31369321,16528.0,16527.0,0.78244964]
[1672563405813,0.69262521,16528.0,16527.0,0.78244964]
[1672563407607,0.69262521,16528.0,16527.0,0.78235332]
[1672563416823,0.69274055,16528.0,16527.0,0.78235332]
[1672563417068,0.14819289,16528.0,16527.0,0.78235332]
[1672563418077,0.69262407,16528.0,16527.0,0.78235332]
[1672563418353,1.31369207,16528.0,16527.0,0.78235332]
[1672563418620,1.31368178,16528.0,16527.0,0.78235332]
[1672563419359,0.76926089,16528.0,16527.0,0.78235332]
[1672563419858,0.6925899,16528.0,16527.0,0.78235332]
[1672563420119,0.14819289,16528.0,16527.0,0.78235332]
[1672563420357,0.6927052,16528.0,16527.0,0.78235332]
[1672563420612,1.31365909,16528.0,16527.0,0.78235332]
[1672563420832,0.69258618,16528.0,16527.0,0.78235332]
[1672563422342,0.14819289,16528.0,16527.0,0.78235332]
[1672563422582,1.78890712,16528.0,16527.0,0.11089263]
[1672563422829,2.00744108,16528.0,16527.0,0.11089263]
[1672563423320,2.00732574,16528.0,16527.0,0.11089263]
[1672563423568,2.00744108,16528.0,16527.0,0.11089263]
[1672563423810,2.00744108,16528.0,16527.0,0.18361708]
[1672563423811,2.00732574,16528.0,16527.0,0.18361708]
[1672563424757,2.00744108,16528.0,16527.0,0.11089263]
[1672563425004,1.38637308,16528.0,16527.0,0.11089263]
[1672563425252,2.00732574,16528.0,16527.0,0.11089263]
[1672563425751,1.38637308,16528.0,16527.0,0.11089263]
[1672563426023,2.00744108,16528.0,16527.0,0.11089263]
[1672563426322,1.39514461,16528.0,16527.0,0.11089263]
[1672563426534,0.77407661,16528.0,16527.0,0.11089263]
[1672563426761,0.77407661,16528.0,16527.0,0.21509918]
[1672563427002,0.77396127,16528.0,16527.0,0.21509918]
[1672563427246,1.39502927,16528.0,16527.0,0.21509918]
[1672563427746,0.77396127,16528.0,16527.0,0.21509918]
[1672563428009,0.77407661,16528.0,16527.0,0.21509918]
[1672563428503,0.77396127,16528.0,16527.0,0.21509918]
[1672563428993,1.39502927,16528.0,16527.0,0.21509918]
[1672563429509,0.77396127,16528.0,16527.0,0.21509918]
[1672563430499,0.77396127,16528.0,16527.0,0.21502417]
[1672563430746,1.31808181,16528.0,16527.0,0.21502417]
[1672563432773,1.31819715,16528.0,16527.0,0.21502417]
[1672563433310,1.31808181,16528.0,16527.0,0.21502417]
[1672563433834,1.31819715,16528.0,16527.0,0.21502417]
[1672563436982,1.72073119,16528.0,16527.0,0.21502417]
[1672563437248,1.39514461,16528.0,16527.0,0.21502417]
[1672563438015,0.77407661,16528.0,16527.0,0.21502417]
[1672563438273,0.77407661,16528.0,16527.0,0.11081762]
[1672563438775,1.39514461,16528.0,16527.0,0.11081762]
[1672563438984,1.78890712,16528.0,16527.0,0.11081762]
[1672563439227,2.00744108,16528.0,16527.0,0.11081762]
[1672563442521,2.02442597,16528.0,16527.0,0.11081762]
[1672563442808,2.02431063,16528.0,16527.0,0.17485614]
[1672563443554,0.79094616,16528.0,16527.0,0.17485614]
[1672563443801,1.41201416,16528.0,16527.0,0.17485614]
[1672563444306,0.79094616,16528.0,16527.0,0.17485614]
[1672563444804,1.41201416,16528.0,16527.0,0.11081762]
[1672563445048,2.42684467,16528.0,16527.0,0.11081762]
[1672563445359,2.02431063,16528.0,16527.0,0.11081762]
[1672563446306,2.02442597,16528.0,16527.0,0.11081762]
[1672563447070,2.42696001,16528.0,16527.0,0.11081762]
[1672563447321,2.42696001,16528.0,16527.0,0.12302687]
[1672563449344,2.02431063,16528.0,16527.0,0.12302687]
[1672563449585,2.42696001,16528.0,16527.0,0.12302687]
[1672563452489,1.80589201,16528.0,16527.0,0.12302687]
[1672563452735,2.02442597,16528.0,16527.0,0.12302687]
[1672563453033,2.42696001,16528.0,16527.0,0.12302687]
[1672563453306,2.42696001,16528.0,16527.0,0.12292925]
[1672563453554,1.41201416,16528.0,16527.0,0.12292925]
[1672563453801,0.79094616,16528.0,16527.0,0.12292925]
[1672563456083,1.41201416,16528.0,16527.0,0.12292925]
[1672563456800,0.79094616,16528.0,16527.0,0.12292925]
[1672563457271,1.4121295,16528.0,16527.0,0.12292925]
[1672563458811,0.7910615,16528.0,16527.0,0.12292925]
[1672563459319,1.4121295,16528.0,16527.0,0.12292925]
[1672563459569,0.7910615,16528.0,16527.0,0.12292925]
[1672563460059,1.4121295,16528.0,16527.0,0.12292925]
[1672563460566,0.7910615,16528.0,16527.0,0.12292925]
[1672563461081,0.79094616,16528.0,16527.0,0.12292925]
[1672563462559,0.7910615,16528.0,16527.0,0.12292925]
[1672563462820,0.79094616,16528.0,16527.0,0.12292925]
[1672563463556,1.4121295,16528.0,16527.0,0.12292925]
[1672563464057,0.7910615,16528.0,16527.0,0.12292925]
[1672563464555,0.79094616,16528.0,16527.0,0.12292925]
[1672563464805,0.7910615,16528.0,16527.0,0.12292925]
[1672563465553,1.4121295,16528.0,16527.0,0.12292925]
[1672563466551,0.7910615,16528.0,16527.0,0.12292925]
[1672563467084,1.4121295,16528.0,16527.0,0.12292925]
[1672563467607,0.7910615,16528.0,16527.0,0.12292925]
[1672563468135,1.4121295,16528.0,16527.0,0.12292925]
[1672563468346,0.7910615,16528.0,16527.0,0.12292925]
[1672563469095,1.4121295,16528.0,16527.0,0.12292925]
[1672563469591,0.79094616,16528.0,16527.0,0.12292925]
[1672563473258,0.7910615,16528.0,16527.0,0.12292925]
[1672563474746,0.79094616,16528.0,16527.0,0.12292925]
[1672563474990,0.7910615,16528.0,16527.0,0.12292925]
[1672563475236,0.79094616,16528.0,16527.0,0.12292925]
[1672563476255,0.7910615,16528.0,16527.0,0.12292925]
[1672563476532,0.79094616,16528.0,16527.0,0.12292925]
[1672563477010,0.7910615,16528.0,16527.0,0.12286744]
[1672563477506,0.79094616,16528.0,16527.0,0.12286744]
[1672563478257,0.79094207,16528.0,16527.0,0.12286744]
[1672563479018,0.79082673,16528.0,16527.0,0.12286744]
[1672563479266,0.79094207,16528.0,16527.0,0.12286744]
[1672563480043,0.79082673,16528.0,16527.0,0.12286744]
[1672563482558,0.79094207,16528.0,16527.0,0.12286744]
[1672563482799,0.79082673,16528.0,16527.0,0.12286744]
[1672563483539,0.79094207,16528.0,16527.0,0.12286744]
[1672563483794,0.79082673,16528.0,16527.0,0.12286744]
[1672563485298,0.79094207,16528.0,16527.0,0.12286744]
[1672563485553,0.79082673,16528.0,16527.0,0.12286744]
[1672563486575,0.79094207,16528.0,16527.0,0.12286744]
[1672563488562,1.40323854,16528.0,16527.0,0.12286744]
[1672563488783,2.02430654,16528.0,16527.0,0.12286744]
[1672563494549,2.42684058,16528.0,16527.0,0.12286744]
[1672563499776,1.81454411,16528.0,16527.0,0.12286744]
[1672563499994,2.42716506,16528.0,16527.0,0.12286744]
[1672563500749,1.81454411,16528.0,16527.0,0.12286744]